Cogmind - Beta 13 @@@ ROGUE MODE // 2024.04.14 @ 16:48:02 Player: MO-55 Result: Destroyed by D-53 Grenadier with Mini Grenade Launcher Performance ------------- Evolutions (1) 500 Regions Visited (3) 600 Robots Destroyed (42) 210 Value Destroyed (964) 964 Prototype IDs (3) 60 Alien Tech Used (0) 0 Bonus (43) 43 TOTAL SCORE: 2377 Bonus ------- High Alert Combat Kills 43 Cogmind --------- Core Integrity 0/400 Matter 235/300 Energy 280/280 System Corruption 0% Temperature Cool (0) Movement Walking (190) Ox1 Location -9/Mines Parts ------- > --- POWER (1) -------- Heavy Ion Engine > --- PROPULSION (3) --- Carbon-fiber Leg Carbon-fiber Leg > --- UTILITY (3) ------ Large Storage Unit Light Armor Plating Light Armor Plating > --- WEAPON (2) ------- Mace Maul > --- INVENTORY (15) --- Heavy Ion Engine Aluminum Leg Aluminum Leg Aluminum Leg Carbon-fiber Leg Light Armor Plating Grenade Launcher Grenade Launcher Mace Mace Maul Peak State ------------ > --- POWER ------------ Heavy Ion Engine > --- PROPULSION ------- Improved Aluminum Leg Carbon-fiber Leg Carbon-fiber Leg > --- UTILITY ---------- Large Storage Unit Improved Terrain Scanner Light Armor Plating > --- WEAPON ----------- Mace Maul > --- INVENTORY -------- Heavy Ion Engine Aluminum Leg Aluminum Leg Aluminum Leg Carbon-fiber Leg Light Armor Plating Light Armor Plating Light Armor Plating Light Armor Plating Light Armor Plating Grenade Launcher Grenade Launcher Mace Mace Maul [Rating: 22] Favorites ----------- Power Ion Engine Engine Ion Engine Propulsion Improved Aluminum Leg Treads Light Treads Leg Improved Aluminum Leg Wheel Wheel Utility Large Storage Unit Device Heat Sink Storage Large Storage Unit Protection Light Armor Plating Weapon Mace Energy Gun Particle Gun Ballistic Gun Light Assault Rifle Impact Weapon Mace Build | -11 -10 -9 -9 ------- Run | Yrd Mat Mat Min Slots Evolved 2 | . . 2 . Power . | . . . . Propulsion 1 | . . 1 . Utility 1 | . . 1 . Weapon . | . . . . Parts Attached 48 | 6 18 19 5 Power 8 | 1 3 4 . Engine 8 | 1 3 4 . Core . | . . . . Reactor . | . . . . Propulsion 15 | 2 7 6 . Treads 2 | . 2 . . Leg 10 | 2 2 6 . Wheel 3 | . 3 . . Hover . | . . . . Flight . | . . . . Utility 16 | 1 3 7 5 Device 7 | . 1 5 1 Storage 3 | 1 2 . . Processor . | . . . . Hackware . | . . . . Protection 6 | . . 2 4 Artifact . | . . . . Weapon 9 | 2 5 2 . Energy Gun 1 | . 1 . . Energy Cannon . | . . . . Ballistic Gun 4 | 2 2 . . Ballistic Cannon . | . . . . Launcher . | . . . . Special Weapon . | . . . . Impact Weapon 4 | . 2 2 . Slashing Weapon . | . . . . Piercing Weapon . | . . . . Special Melee Weapon . | . . . . Unidentified Prototypes 1 | . . 1 . Parts Lost 18 | . 4 9 5 Power 4 | . . 4 . Propulsion 6 | . 2 3 1 Utility 6 | . . 2 4 Weapon 2 | . 2 . . Highest Loss Streak 5 | . 4 5 5 To Critical Strikes . | . . . . Average Slot Usage (%) 94 | . 93 95 82 Engine 11 | . 14 8 11 Treads 5 | . 12 . . Leg 20 | . 7 32 27 Wheel 3 | . 7 . . Device 11 | . 12 11 . Storage 12 | . 14 11 11 Protection 4 | . . 8 11 Energy Gun 4 | . 9 . . Ballistic Gun 5 | . 12 . . Impact Weapon 12 | . 3 22 22 Naked Turns . | . . . . Heaviest Build 90 | 12 90 39 39 Greatest Support 43 | 20 40 43 43 Greatest Overweight (x) 8 | 1 8 1 . Average Overweight (x) 1 | . 3 . . Largest Inventory Capacity 25 | 8 25 15 15 Average Capacity 17 | 7 21 15 15 Most Carried 15 | 6 14 15 15 Average Carried 9 | 3 8 11 13 Final Capacity 15 | 8 15 15 15 Final Carried 15 | 6 14 15 11 Class Distribution -------------------- 80% | Mutant 19% | Scavenger-Mutant Dominant Class ---------------- Mutant | -10/Materials Mutant | -9/Materials Mutant | -9/Mines Resources | -11 -10 -9 -9 ----------- Run | Yrd Mat Mat Min Matter Collected 634 | 259 258 117 . Remotely . | . . . . Salvage Created 1272 | 12 370 890 . Parts 54 | 3 20 31 . Haulers Intercepted 2 | . . 2 . Recyclers Shooed . | . . . . Parts Field Recycled . | . . . . Retrieved Matter . | . . . . Parts Self-Destructed . | . . . . Prevented . | . . . . Kills | -11 -10 -9 -9 ------- Run | Yrd Mat Mat Min Combat Hostiles Destroyed 32 | . 9 23 . Melee 14 | . 1 13 . Guns 6 | . 6 . . Classes Destroyed 9 | 1 4 4 . Worker 1 | . 1 . . Tunneler 1 | 1 . . . Hauler 2 | . . 2 . Recycler 2 | . . 2 . Operator 1 | . . 1 . Watcher 3 | . 3 . . Swarmer 14 | . 3 11 . Grunt 10 | . 6 4 . Sentry 8 | . . 8 . Best Kill Streak 5 | 1 3 5 . Combat Bots Only 4 | . 3 4 . Max Kills in Single Turn 1 | 1 1 1 . Gunslinging . | . . . . Exploded . | . . . . Melee 1 | . 1 1 . Uniques/NPCs Destroyed . | . . . . Combat | -11 -10 -9 -9 -------- Run | Yrd Mat Mat Min Hostile Shots Fired 267 | . 74 179 14 Missed 68 | . 12 55 1 Damage Taken 2823 | . 755 1504 564 Core 626 | . 214 298 114 Absorbed by Shields . | . . . . Regen/Repaired (Parts) 100 | . . 100 . Core Remaining (%) 57 | 100 14 . . Volleys Fired 45 | 6 39 . . Largest 2 | 2 2 . . Hottest 85 | 40 85 . . Shots Fired 85 | 12 73 . . Gun 85 | 12 73 . . Cannon . | . . . . Launcher . | . . . . Special . | . . . . Kinetic 71 | 12 59 . . Thermal 14 | . 14 . . Explosive . | . . . . Electromagnetic . | . . . . Robot Hit Streak 8 | 7 8 . . Robot Miss Streak 3 | 1 3 . . Penetration Max . | . . . . Secondary Targets . | . . . . Shots Hit Robots 159 | 10 54 94 1 Core Hits 27 | 2 15 10 . Critical Kills 1 | . . 1 . Critical Parts Destroyed 19 | . 4 15 . Critical Strikes 23 | . 5 18 . Burn 1 | . 1 . . Smash 22 | . 4 18 . Melee Attacks 146 | . 15 130 1 Impact 146 | . 15 130 1 Slashing . | . . . . Piercing . | . . . . Sneak Attacks 10 | . 2 8 . Combat Hostiles . | . . . . Follow-up Attacks 17 | . . 17 . Damage Inflicted 3819 | 69 906 2816 28 Guns 541 | 69 472 . . Cannons . | . . . . Explosions . | . . . . Melee 3278 | . 434 2816 28 Ramming . | . . . . Kinetic 415 | 69 346 . . Thermal 126 | . 126 . . Explosive . | . . . . Electromagnetic . | . . . . Impact 3278 | . 434 2816 28 Slashing . | . . . . Piercing . | . . . . Highest Corruption . | . . . . Average Corruption . | . . . . Corruption Purged . | . . . . Corruption Blocked . | . . . . Overload Shots . | . . . . Overflow Damage 877 | . 178 699 . Projectiles . | . . . . Explosions . | . . . . Melee 877 | . 178 699 . Knockbacks 5 | . 2 2 1 Impact 5 | . 2 2 1 Kinetic . | . . . . Secondary . | . . . . Self-Inflicted Damage . | . . . . Shots . | . . . . Rammed . | . . . . Targets Rammed . | . . . . Kicked . | . . . . Crushed . | . . . . Highest Temperature 48 | . 48 6 . Average Temperature 17 | . 18 4 . Received Heat Transfer 867 | . 360 507 . Siege Activations . | . . . . Robots Corrupted . | . . . . Combat Hostiles . | . . . . Parts Fried 21 | . 2 19 . Impact Corruptions 44 | . 8 36 . Robots Melted . | . . . . Combat Hostiles . | . . . . Parts Melted 1 | . 1 . . Heat Transferred 370 | . 370 . . Parts Sabotaged . | . . . . Parts Stolen . | . . . . Parts Stripped . | . . . . Power Chain Reactions . | . . . . Alert | -11 -10 -9 -9 ------- Run | Yrd Mat Mat Min Peak Influence 510 | 5 121 510 155 Initial 155 | . 3 50 155 Average 184 | . 39 333 130 Maximum Alert Level 2 | . . 2 . Low Security (%) 59 | 100 100 17 100 Level 1 21 | . . 42 . Level 2 19 | . . 39 . Level 3 . | . . . . Level 4 . | . . . . Level 5 . | . . . . High Security . | . . . . Max Security . | . . . . Squads Dispatched 3 | . 2 1 . Investigation 1 | . 1 . . Extermination . | . . . . Reinforcement 2 | . 1 1 . Assault . | . . . . Garrison . | . . . . Intercept . | . . . . Searches Triggered . | . . . . Construction Impeded . | . . . . Haulers Reinforced . | . . . . Active Scanning Responses . | . . . . Cargo Convoy Interrupts . | . . . . Stealth | -11 -10 -9 -9 --------- Run | Yrd Mat Mat Min Distress Signals 2 | . . 2 . Communications Jammed . | . . . . Distress Signals . | . . . . Times Spotted 61 | . 21 38 2 Peak Tracking Total 6 | . 5 6 2 Tactical Retreats 2 | . . 2 . Traps | -11 -10 -9 -9 ------- Run | Yrd Mat Mat Min Traps Triggered 1 | . 1 . . Indirectly . | . . . . Trap Hack Attempts . | . . . . Triggered . | . . . . Disarmed . | . . . . Reprogrammed . | . . . . Reused . | . . . . Traps Extracted . | . . . . Installed . | . . . . Triggered . | . . . . Machines | -11 -10 -9 -9 ---------- Run | Yrd Mat Mat Min Machines Disabled 1 | . . 1 . Max in Single Turn 1 | . . 1 . Machines Repaired . | . . . . Machines Dismantled . | . . . . Machines Sabotaged . | . . . . Overloaded Fab Kills . | . . . . Hacking | -11 -10 -9 -9 --------- Run | Yrd Mat Mat Min Machines Accessed 13 | . 3 10 . Terminals 10 | . 3 7 . Fabricators . | . . . . Repair Stations 2 | . . 2 . Recycling Units . | . . . . Scanalyzers 1 | . . 1 . Garrison Access . | . . . . Total Hacks 36 | . 10 26 . Successful 21 | . 5 16 . Failed 14 | . 4 10 . Catastrophic 1 | . . 1 . Database Lockouts 1 | . 1 . . Manual 22 | . 10 12 . Terminals 28 | . 10 18 . Fabricators . | . . . . Repair Stations 4 | . . 4 . Recycling Units . | . . . . Scanalyzers 4 | . . 4 . Garrison Access . | . . . . Terminal Hacks 13 | . 4 9 . Robot Analysis 3 | . 1 2 . Prototype ID Bank 1 | . . 1 . Emergency Access Points 1 | . . 1 . Terminal Index 2 | . 1 1 . Locate Traps 3 | . 1 2 . Hauler Manifests 2 | . 1 1 . Registered Components 1 | . . 1 . Fabricator Hacks . | . . . . Repair Station Hacks 2 | . . 2 . Scan Component 1 | . . 1 . Repair 1 | . . 1 . Recycling Unit Hacks . | . . . . Scanalyzer 4 | . . 4 . Insert Component 2 | . . 2 . Analyze 2 | . . 2 . Garrison Access Hacks . | . . . . Unauthorized Hacks 2 | . 1 1 . Terminals 2 | . 1 1 . Botnet 2 | . 1 1 . Fabricators . | . . . . Repair Stations . | . . . . Recycling Units . | . . . . Scanalyzers . | . . . . Garrison Access . | . . . . Data Cores Recovered . | . . . . Used . | . . . . Hacking Detections 12 | . 3 9 . Full Trace Events . | . . . . Feedback Events . | . . . . Feedback Blocked . | . . . . Robot Schematics Acquired . | . . . . Robots Built . | . . . . Authchips . | . . . . Time . | . . . . Total Robot Build Rating . | . . . . Part Schematics Acquired 2 | . . 2 . Parts Built . | . . . . Authchips . | . . . . Time . | . . . . Total Part Build Rating . | . . . . Parts Repaired 1 | . . 1 . Time 38 | . . 38 . Parts Recycled . | . . . . Recycled Matter . | . . . . Retrieved Matter . | . . . . Retrieved Components . | . . . . Parts Scanalyzed 2 | . . 2 . Part Schematics Acquired 2 | . . 2 . Parts Damaged . | . . . . Bothacking | -11 -10 -9 -9 ------------ Run | Yrd Mat Mat Min Used RIF Installer . | . . . . Robots Hacked . | . . . . Non-combat . | . . . . Combat . | . . . . Robot Hacks Applied . | . . . . Relay Couplers Released . | . . . . Fabnet Peak Effective % . | . . . . Robots Rewired . | . . . . Allies Hacked . | . . . . Hacks Repelled . | . . . . Allies | -11 -10 -9 -9 -------- Run | Yrd Mat Mat Min Total Allies . | . . . . Largest Group . | . . . . Highest-Rated Group . | . . . . Highest-Rated Ally . | . . . . Total Orders . | . . . . Ally Attacks . | . . . . Total Damage . | . . . . Kills . | . . . . Allies Corrupted . | . . . . Allies Melted . | . . . . Intel | -11 -10 -9 -9 ------- Run | Yrd Mat Mat Min Robot Analysis Total 3 | . 1 2 . Derelict Logs Recovered . | . . . . Drone Launches . | . . . . Drone Recoveries . | . . . . Exploration | -11 -10 -9 -9 ------------- Run | Yrd Mat Mat Min Turns Passed 2539 | 82 1184 1254 19 Spaces Moved 1245 | 47 559 631 8 Core 9 | 9 . . . Treads 75 | . 75 . . Legs 905 | 38 228 631 8 Wheels 256 | . 256 . . Hover . | . . . . Flight . | . . . . Fastest Speed 50 | 50 110 120 120 Average Speed 145 | 111 177 120 120 Slowest Speed 320 | 120 320 190 120 Overloaded Moves . | . . . . Propulsion Burnouts . | . . . . Robots Hopped . | . . . . Cave-ins Triggered . | . . . . Exploration Rate (%) 36 | 4 63 68 11 Regions Visited 3 Branch Regions 1 Pre-discovered Areas . | . . . . Known Exits Taken . | . . . . Unknown Exits Taken 3 | 1 1 1 . Scrap Searched . | . . . . Spaces Dug 5 | . . 5 . Terrain Destroyed 5 | . . 5 . Melee 5 | . . 5 . Projectile . | . . . . AOE . | . . . . Terrain Rammed . | . . . . Walls Destroyed . | . . . . Machines Disabled . | . . . . Actions | -11 -10 -9 -9 --------- Run | Yrd Mat Mat Min Total 1671 | 64 661 931 15 Wait 154 | . 7 146 1 Move 1242 | 46 558 630 8 Hop . | . . . . Pick Up 37 | 6 13 18 . Fast Attach 19 | 6 6 7 . Attach 17 | . 4 9 4 Detach 1 | . 1 . . Swap 12 | . 8 3 1 Drop 21 | . 10 11 . Fire 45 | 6 39 . . Melee 123 | . 15 107 1 Ram . | . . . . Kick . | . . . . Crush . | . . . . Escape Stasis . | . . . . Rewire . | . . . . Trap . | . . . . Miscellaneous . | . . . . Route ------- -11/Scrapyard -10/Materials (discovered 2 exits: *Mat / [*Min]) -9/Materials (discovered 5 exits: [*Mat] / [*Min x2] / [*Sto x2]) -9/Mines (discovered 1 exit: [*Mat]) History --------- Turn | Location | Event 13 | -11/Scrapyard | Discovered new exit (range 16) 83 | -11/Scrapyard | Entered Materials 205 | -10/Materials | Core integrity fell below 50% 237 | -10/Materials | Lost 4 parts (2n2w) 302 | -10/Materials | Build established: Mutant 311 | -10/Materials | Discovered new exit (range 15) 629 | -10/Materials | Discovered new exit (range 11) 659 | -10/Materials | Central database locked down 684 | -10/Materials | Core integrity fell below 20% 783 | -10/Materials | Build established: Scavenger-Mutant 1267 | -10/Materials | Entered another Materials area 1267 | -9/Materials | Evolved 2 slots: Propulsion x1, Utility x1 1302 | -9/Materials | Build established: Mutant 1454 | -9/Materials | Lost 5 parts (3p1n1u) 1785 | -9/Materials | Core integrity fell below 50% 1794 | -9/Materials | Discovered new exit (range 11) 1921 | -9/Materials | Discovered new exit (range 15) 1933 | -9/Materials | Discovered new exit (range 6) 1946 | -9/Materials | Discovered new exit (range 7) 2045 | -9/Materials | Discovered new exit (range 10) 2417 | -9/Materials | Repaired Carbon-fiber Leg 2521 | -9/Materials | Entered Mines 2522 | -9/Mines | Assembled infested the area 2526 | -9/Mines | Core integrity fell below 20% 2534 | -9/Mines | Discovered new exit (range 7) 2540 | -9/Mines | Destroyed by D-53 Grenadier with Mini Grenade Launcher Last Messages --------------- 2x Beam Cannon 1x Imp. Flight Unit LOCATION=UNKNOWN GOAL=ESCAPE 02522_ ALERT: Infestation in the mines, dispatching Demolisher response squad. 02525_ C-30 ARC bursts open, deploying its payload. 02525_ D-53 Grenadier unfolds itself. 02525_ 72-JUW(h) destroyed. 02525_ Lgt. Armor Plating destroyed. 02527_ Core Extractor disabled. 02529_ Imp. Terrain Scanner destroyed. 02529_ Lgt. Armor Plating destroyed. 02534_ EXIT=FOUND 02537_ The unstable cave ceiling collapses. 02538_ D-53 Grenadier knocked back. 02538_ Imp. Aluminum Leg destroyed. 02538_ T-07 Excavator destroyed. 02539_ The unstable cave ceiling collapses. Map ----- +----------------------------------------------------+ | ?????????????????????????????????????????????????? | | ?????????????????????????????????????????????????? | | ?????????????????????????????????????????????????? | | ?????????????????????????????????????????????????? | | ?????????????????????????????????????????????????? | | ?????????????????????????????????????????????????? | | ?????????????????????????????????????????????????? | | ?????????????????????????????????????????????????? | | ?????????????????????????????????????????????????? | | ????????????????????????????????????#????????????? | | ???????????????????????#???????????? ????????????? | | ??????????????????????????????????? #????????????? | | ??????????????????????????????????# #????????????? | | ????????????????????????????????? ?????????????? | | ????????????????????????????????? $ ?????????????? | | ??????????????????????????#?????? ??????????????? | | ????????????????????????????##### ???????????????? | | ??????????????????#????????## # ###?????????????? | | ??????????????????# ???????# #?????????????? | | ??????????????#??## #???#### # #?????????????? | | ??????????????# # t### = ##????????????? | | ?????????????## # #????????????? | | ????????????## < ##????????????? | | ????????????# #????????????? | | ????????????# %d #????????????? | | ???????????# |d @ ##????????????? | | ???????????# ! t ???????? | | ????????????# " ??????? | | ????????????##### ## ## ##??????? | | ????????????????## ### ##? #?? ##???????? | | ?????????????????#### #??## ??#???#????????? | | ????????????????????###????# ?????????????? | | ?????????????????????????????# ##????????????? | | ??????????????????????????????# ###?????????????? | | ???????????????????????????????###?#?????????????? | | ?????????????????????????????????????????????????? | | ?????????????????????????????????????????????????? | | ?????????????????????????????????????????????????? | | ?????????????????????????????????????????????????? | | ?????????????????????????????????????????????????? | | ?????????????????????????????????????????????????? | | ?????????????????????????????????????????????????? | | ?????????????????????????????????????????????????? | | ?????????????????????????????????????????????????? | | ?????????????????????????????????????????????????? | | ?????????????????????????????????????????????????? | | ?????????????????????????????????????????????????? | | ?????????????????????????????????????????????????? | | ?????????????????????????????????????????????????? | | ?????????????????????????????????????????????????? | +----------------------------------------------------+ Best States ------------- Heat Dissipation 38 Energy Generation 14 Energy Capacity 280 Matter Stores 300 Matter Capacity 300 Sight Range 16 Terrain Scan Range 16 Terrain Scan Density 10 Armor Coverage 300 Evasion (%) 59 Recoil Reduction 2 Item Schematics ----------------- Carbon-fiber Leg | -9/Materials | Scanalyzed Grenade Launcher | -9/Materials | Scanalyzed Robot Schematics ------------------ None Fabricated ------------ Nothing Alien Tech Used ----------------- None Achievements -------------- None Challenges ------------ None Game ------ Seed AccelerationWeaponAutohacker Manual? 0 Play Time 00:24:01 Cumulative 101.4 hours Start 2024.04.14 @ 16:21:45 End 2024.04.14 @ 16:48:02 Sessions 1 Manual Loads 0 Difficulty Rogue Special Mode None Game No. 84 Rogue 84 Adventurer 0 Explorer 0 Win Type - Total 2 Types 1/0/1/0/0/0/0/0/0 Lore% 47 Gallery% 61 Achievement% 50 Wizard Run 0 Options --------- Layout 2 ASCII 0 Keyboard 0 Movement Mouse Keybinds 0 Fullscreen 2 Font 32/SmallcapsGlow Map View 50x44 Zoom Use 0% Tactical HUD 1 Map Filters NONE Filters NONE Steam 1 RUN: 97332a10-799d-4a0a-850c-d1cb84637cd6